Cogmind - Beta 13 @@@ ROGUE MODE // 2024.04.02 @ 11:31:02 Player: DeluxeH30 Result: Destroyed by Y-45 Defender with Heavy Assault Rifle Performance ------------- Evolutions (1) 500 Regions Visited (3) 600 Robots Destroyed (32) 160 Value Destroyed (929) 929 Prototype IDs (4) 80 Alien Tech Used (0) 0 Bonus (0) 0 TOTAL SCORE: 2269 Bonus ------- None Cogmind --------- Core Integrity 0/400 Matter 248/300 Energy 280/280 System Corruption 0% Temperature Cool (9) Movement Walking (190) Ox1 Location -9/Storage Parts ------- > --- POWER (1) -------- Cooled Ion Engine > --- PROPULSION (4) --- Aluminum Leg Improved Flight Unit > --- UTILITY (2) ------ Small Storage Unit Targeting Computer > --- WEAPON (2) ------- Maul > --- INVENTORY (8) ---- Improved Ion Engine Improved Ion Engine Weight Redist. System Terrain Scanner Salvage Targeting Computer Salvage Targeting Computer Datajack Peak State ------------ > --- POWER ------------ Cooled Ion Engine > --- PROPULSION ------- Flight Unit Flight Unit VTOL Module Improved Flight Unit > --- UTILITY ---------- Small Storage Unit Shield Generator > --- WEAPON ----------- Improved Assault Rifle Maul > --- INVENTORY -------- Light Ion Engine Improved Ion Engine Improved Ion Engine Improved Ion Engine Flight Unit Weight Redist. System Improved Assault Rifle Datajack [Rating: 19] Favorites ----------- Power Light Ion Engine Engine Light Ion Engine Propulsion Aluminum Leg Leg Aluminum Leg Hover Unit Hover Unit Flight Unit Flight Unit Utility Small Storage Unit Device Shield Generator Storage Small Storage Unit Processor Targeting Computer Weapon Improved Assault Rifle Energy Gun EM Pulse Gun Ballistic Gun Improved Assault Rifle Impact Weapon Maul Build | -11 -10 -9 -9 ------- Run | Yrd Mat Mat Sto Slots Evolved 2 | . . 2 . Power . | . . . . Propulsion 2 | . . 2 . Utility . | . . . . Weapon . | . . . . Parts Attached 53 | 6 . 23 24 Power 12 | 1 . 6 5 Engine 12 | 1 . 6 5 Core . | . . . . Reactor . | . . . . Propulsion 17 | 2 . 8 7 Treads . | . . . . Leg 6 | 2 . . 4 Wheel . | . . . . Hover 1 | . . . 1 Flight 10 | . . 8 2 Utility 7 | 1 . 3 3 Device 4 | . . 3 1 Storage 2 | 1 . . 1 Processor 1 | . . . 1 Hackware . | . . . . Protection . | . . . . Artifact . | . . . . Weapon 17 | 2 . 6 9 Energy Gun 4 | 1 . 2 1 Energy Cannon . | . . . . Ballistic Gun 9 | 1 . 3 5 Ballistic Cannon . | . . . . Launcher . | . . . . Special Weapon . | . . . . Impact Weapon 4 | . . 1 3 Slashing Weapon . | . . . . Piercing Weapon . | . . . . Special Melee Weapon . | . . . . Unidentified Prototypes 4 | . . . 4 Parts Lost 17 | . . 9 8 Power 2 | . . 1 1 Propulsion 8 | . . 4 4 Utility 2 | . . 1 1 Weapon 5 | . . 3 2 Highest Loss Streak 4 | . . 3 4 To Critical Strikes . | . . . . Average Slot Usage (%) 86 | . 85 80 89 Engine 10 | . 14 9 10 Leg 12 | . 28 7 12 Flight 21 | . . 25 23 Device 5 | . . 6 5 Storage 10 | . 14 11 10 Processor 3 | . . . 5 Energy Gun 4 | . 14 6 1 Ballistic Gun 13 | . 14 12 14 Impact Weapon 2 | . . . 4 Naked Turns . | . . . . Heaviest Build 20 | 11 11 17 20 Greatest Support 30 | 20 20 20 30 Greatest Overweight (x) 1 | . . 1 1 Average Overweight (x) . | . . . . Largest Inventory Capacity 8 | 8 8 8 8 Average Capacity 7 | 6 8 8 7 Most Carried 8 | 4 2 8 8 Average Carried 5 | 1 2 4 6 Final Capacity 8 | 8 8 8 8 Final Carried 7 | 2 2 7 7 Class Distribution -------------------- 63% | Mutant 27% | Scavenger-Sprinter 6% | Sprinter 3% | Scavenger-Mutant Dominant Class ---------------- Mutant | -10/Materials Scavenger-Sprinter | -9/Materials Mutant | -9/Storage Resources | -11 -10 -9 -9 ----------- Run | Yrd Mat Mat Sto Matter Collected 967 | 168 . 366 433 Remotely . | . . . . Salvage Created 1394 | 70 . 533 791 Parts 76 | 3 . 37 36 Haulers Intercepted . | . . . . Recyclers Shooed 2 | . . . 2 Parts Field Recycled . | . . . . Retrieved Matter . | . . . . Parts Self-Destructed . | . . . . Prevented . | . . . . Kills | -11 -10 -9 -9 ------- Run | Yrd Mat Mat Sto Combat Hostiles Destroyed 24 | . . 12 12 Melee 2 | . . 1 1 Guns 20 | . . 10 10 Classes Destroyed 7 | 1 . 4 2 Worker 1 | . . . 1 Recycler 5 | 1 . 1 3 Operator 1 | . . 1 . Watcher 1 | . . . 1 Swarmer 4 | . . 4 . Grunt 10 | . . 3 7 Sentry 10 | . . 5 5 Best Kill Streak 6 | 1 . 6 4 Combat Bots Only 6 | . . 6 4 Max Kills in Single Turn 1 | 1 . 1 1 Gunslinging . | . . . . Exploded . | . . . . Melee 1 | . . 1 1 Uniques/NPCs Destroyed . | . . . . Combat | -11 -10 -9 -9 -------- Run | Yrd Mat Mat Sto Hostile Shots Fired 221 | . 4 111 106 Missed 62 | . 2 32 28 Damage Taken 2099 | . 39 975 1085 Core 401 | . . 166 235 Absorbed by Shields 23 | . . 23 . Regen/Repaired (Parts) 55 | . . . 55 Core Remaining (%) 100 | 100 100 . . Volleys Fired 114 | 3 4 45 62 Largest 2 | 2 2 2 2 Hottest 79 | 60 60 79 79 Shots Fired 186 | 6 8 72 100 Gun 186 | 6 8 72 100 Cannon . | . . . . Launcher . | . . . . Special . | . . . . Kinetic 150 | 3 4 53 90 Thermal 22 | . . 12 10 Explosive . | . . . . Electromagnetic 14 | 3 4 7 . Robot Hit Streak 17 | 2 3 17 15 Robot Miss Streak 2 | 2 1 2 2 Penetration Max . | . . . . Secondary Targets 2 | . . 2 . Max Gunslinging Chain 1 | . . 1 . Shots Hit Robots 131 | 4 4 58 65 Core Hits 48 | 2 1 20 25 Critical Kills 2 | . . . 2 Critical Parts Destroyed 3 | . . 1 2 Critical Strikes 5 | . . 1 4 Destroy 3 | . . . 3 Smash 2 | . . 1 1 Melee Attacks 10 | . . 3 7 Impact 10 | . . 3 7 Slashing . | . . . . Piercing . | . . . . Sneak Attacks 2 | . . . 2 Combat Hostiles . | . . . . Follow-up Attacks . | . . . . Damage Inflicted 2076 | 41 100 773 1162 Guns 1606 | 41 52 630 883 Cannons . | . . . . Explosions 46 | . 46 . . Melee 422 | . . 143 279 Ramming 2 | . 2 . . Kinetic 1353 | 15 16 439 883 Thermal 170 | . 46 124 . Explosive . | . . . . Electromagnetic 129 | 26 36 67 . Impact 422 | . . 143 279 Slashing . | . . . . Piercing . | . . . . Highest Corruption . | . . . . Average Corruption . | . . . . Corruption Purged . | . . . . Corruption Blocked . | . . . . Overload Shots . | . . . . Overflow Damage 272 | . 16 45 211 Projectiles . | . . . . Explosions 16 | . 16 . . Melee 256 | . . 45 211 Knockbacks 1 | . . . 1 Impact 1 | . . . 1 Kinetic . | . . . . Secondary . | . . . . Self-Inflicted Damage 12 | . 12 . . Shots 1 | . 1 . . Rammed . | . . . . Targets Rammed 1 | . 1 . . Kicked 1 | . 1 . . Crushed . | . . . . Highest Temperature 153 | 40 32 82 153 Average Temperature 36 | 23 17 22 57 Received Heat Transfer 880 | . 15 397 468 Siege Activations . | . . . . Robots Corrupted . | . . . . Combat Hostiles . | . . . . Parts Fried 4 | . . 2 2 Impact Corruptions 5 | . . 1 4 Robots Melted . | . . . . Combat Hostiles . | . . . . Parts Melted . | . . . . Heat Transferred 348 | . 50 298 . Parts Sabotaged . | . . . . Parts Stolen . | . . . . Parts Stripped . | . . . . Power Chain Reactions 1 | . 1 . . Alert | -11 -10 -9 -9 ------- Run | Yrd Mat Mat Sto Peak Influence 323 | 5 97 185 323 Initial 65 | . 3 40 65 Average 116 | 1 20 76 164 Maximum Alert Level 1 | . . . 1 Low Security (%) 86 | 100 100 100 75 Level 1 13 | . . . 24 Level 2 . | . . . . Level 3 . | . . . . Level 4 . | . . . . Level 5 . | . . . . High Security . | . . . . Max Security . | . . . . Squads Dispatched 6 | . 2 2 2 Investigation 2 | . 1 1 . Extermination . | . . . . Reinforcement 4 | . 1 1 2 Assault . | . . . . Garrison . | . . . . Intercept . | . . . . Searches Triggered . | . . . . Construction Impeded . | . . . . Haulers Reinforced . | . . . . Active Scanning Responses . | . . . . Cargo Convoy Interrupts . | . . . . Stealth | -11 -10 -9 -9 --------- Run | Yrd Mat Mat Sto Distress Signals 5 | . 2 1 2 Communications Jammed . | . . . . Distress Signals . | . . . . Times Spotted 44 | . 8 14 22 Peak Tracking Total 8 | . 6 8 6 Tactical Retreats . | . . . . Traps | -11 -10 -9 -9 ------- Run | Yrd Mat Mat Sto Traps Triggered 3 | . 1 . 2 Indirectly . | . . . . Trap Hack Attempts . | . . . . Triggered . | . . . . Disarmed . | . . . . Reprogrammed . | . . . . Reused . | . . . . Traps Extracted . | . . . . Installed . | . . . . Triggered . | . . . . Machines | -11 -10 -9 -9 ---------- Run | Yrd Mat Mat Sto Machines Disabled 1 | . . . 1 Max in Single Turn 1 | . . . 1 Machines Repaired . | . . . . Machines Dismantled . | . . . . Machines Sabotaged . | . . . . Overloaded Fab Kills . | . . . . Hacking | -11 -10 -9 -9 --------- Run | Yrd Mat Mat Sto Machines Accessed 4 | . . 2 2 Terminals 2 | . . 2 . Fabricators . | . . . . Repair Stations 1 | . . . 1 Recycling Units 1 | . . . 1 Scanalyzers . | . . . . Garrison Access . | . . . . Total Hacks 14 | . . 7 7 Successful 8 | . . 2 6 Failed 6 | . . 5 1 Catastrophic 1 | . . 1 . Database Lockouts . | . . . . Manual . | . . . . Terminals 7 | . . 7 . Fabricators . | . . . . Repair Stations 5 | . . . 5 Recycling Units 2 | . . . 2 Scanalyzers . | . . . . Garrison Access . | . . . . Terminal Hacks 2 | . . 2 . Unreport Threat 2 | . . 2 . Fabricator Hacks . | . . . . Repair Station Hacks 4 | . . . 4 Scan Component 2 | . . . 2 Repair 2 | . . . 2 Recycling Unit Hacks 2 | . . . 2 Retrieve Components 2 | . . . 2 Scanalyzer . | . . . . Garrison Access Hacks . | . . . . Unauthorized Hacks . | . . . . Terminals . | . . . . Fabricators . | . . . . Repair Stations . | . . . . Recycling Units . | . . . . Scanalyzers . | . . . . Garrison Access . | . . . . Data Cores Recovered . | . . . . Used . | . . . . Hacking Detections 3 | . . 2 1 Full Trace Events 1 | . . 1 . Feedback Events . | . . . . Feedback Blocked . | . . . . Robot Schematics Acquired . | . . . . Robots Built . | . . . . Authchips . | . . . . Time . | . . . . Total Robot Build Rating . | . . . . Part Schematics Acquired . | . . . . Parts Built . | . . . . Authchips . | . . . . Time . | . . . . Total Part Build Rating . | . . . . Parts Repaired 2 | . . . 2 Time 52 | . . . 52 Parts Recycled . | . . . . Recycled Matter . | . . . . Retrieved Matter . | . . . . Retrieved Components 10 | . . . 10 Parts Scanalyzed . | . . . . Part Schematics Acquired . | . . . . Parts Damaged . | . . . . Bothacking | -11 -10 -9 -9 ------------ Run | Yrd Mat Mat Sto Used RIF Installer . | . . . . Robots Hacked . | . . . . Non-combat . | . . . . Combat . | . . . . Robot Hacks Applied . | . . . . Relay Couplers Released . | . . . . Fabnet Peak Effective % . | . . . . Robots Rewired . | . . . . Allies Hacked . | . . . . Hacks Repelled . | . . . . Allies | -11 -10 -9 -9 -------- Run | Yrd Mat Mat Sto Total Allies . | . . . . Largest Group . | . . . . Highest-Rated Group . | . . . . Highest-Rated Ally . | . . . . Total Orders . | . . . . Ally Attacks . | . . . . Total Damage . | . . . . Kills . | . . . . Allies Corrupted . | . . . . Allies Melted . | . . . . Intel | -11 -10 -9 -9 ------- Run | Yrd Mat Mat Sto Robot Analysis Total . | . . . . Derelict Logs Recovered . | . . . . Drone Launches . | . . . . Drone Recoveries . | . . . . Exploration | -11 -10 -9 -9 ------------- Run | Yrd Mat Mat Sto Turns Passed 1095 | 62 97 329 607 Spaces Moved 669 | 38 71 245 315 Core 21 | 8 . . 13 Treads . | . . . . Legs 320 | 30 71 58 161 Wheels . | . . . . Hover . | . . . . Flight 328 | . . 187 141 Fastest Speed 28 | 50 120 28 29 Average Speed 83 | 105 120 56 93 Slowest Speed 190 | 120 120 120 190 Overloaded Moves . | . . . . Propulsion Burnouts . | . . . . Robots Hopped . | . . . . Cave-ins Triggered . | . . . . Exploration Rate (%) 22 | 4 27 16 41 Regions Visited 3 Branch Regions 1 Pre-discovered Areas . | . . . . Known Exits Taken . | . . . . Unknown Exits Taken 3 | 1 1 1 . Scrap Searched . | . . . . Spaces Dug . | . . . . Terrain Destroyed 4 | . 4 . . Melee . | . . . . Projectile . | . . . . AOE 4 | . 4 . . Terrain Rammed . | . . . . Walls Destroyed . | . . . . Machines Disabled . | . . . . Actions | -11 -10 -9 -9 --------- Run | Yrd Mat Mat Sto Total 1009 | 54 75 364 516 Wait 51 | . . 19 32 Move 666 | 37 70 244 315 Hop . | . . . . Pick Up 55 | 8 . 23 24 Fast Attach 1 | . . . 1 Attach 31 | 6 . 15 10 Detach 1 | . . 1 . Swap 21 | . . 8 13 Drop 22 | . . 6 16 Fire 114 | 3 4 45 62 Melee 10 | . . 3 7 Ram . | . . . . Kick 1 | . 1 . . Crush . | . . . . Escape Stasis 36 | . . . 36 Rewire . | . . . . Trap . | . . . . Miscellaneous . | . . . . Route ------- -11/Scrapyard -10/Materials -9/Materials (discovered 2 exits: *Sto x2) -9/Storage (discovered 1 exit: [*Mat]) History --------- Turn | Location | Event 6 | -11/Scrapyard | Discovered new exit (range 15) 63 | -11/Scrapyard | Entered Materials 147 | -10/Materials | Discovered new exit (range 11) 160 | -10/Materials | Entered another Materials area 160 | -9/Materials | Evolved 2 slots: Propulsion x2 215 | -9/Materials | Discovered new exit (range 8) 272 | -9/Materials | Lost 3 parts (1p1u1w) 387 | -9/Materials | Lost 3 parts (2n1w) 397 | -9/Materials | Discovered new exit (range 7) 489 | -9/Materials | Entered Storage 691 | -9/Storage | Lost 4 parts (1p2n1u) 781 | -9/Storage | Core integrity fell below 50% 968 | -9/Storage | Build established: Mutant 979 | -9/Storage | Repaired Sml. Storage Unit 1005 | -9/Storage | Repaired Aluminum Leg 1058 | -9/Storage | Core integrity fell below 20% 1095 | -9/Storage | Discovered new exit (range 16) 1096 | -9/Storage | Destroyed by Y-45 Defender with Heavy Assault Rifle Last Messages --------------- 01005_ Repair station completes Aluminum Leg repairs. 01005_ Acquired Aluminum Leg. 01022_ Acquired Datajack. 01024_ Acquired Terrain Scanner. 01034_ W-16 Scout sends out distress signal. 01037_ O-16 Technician: "IFF HANDSHAKE FAILED. SECURING TERMINAL." 01038_ ALERT: Hostiles spotted, dispatching reinforcements to Terminal S004. 01054_ Y-45 Defender destroyed. 01060_ G-47 Trooper destroyed. 01066_ G-34 Mercenary suffers critical hit (Smash). 01066_ Destroyed Heat Sink. 01066_ G-34 Mercenary system corrupted by crushing effect. 01067_ G-34 Mercenary system terminally corrupted. 01067_ Aluminum Leg fried. 01076_ Critical hit (Burn: +37). 01076_ Hvy. Assault Rifle destroyed. 01079_ Aluminum Leg destroyed. 01085_ Critical hit (Burn: +37). 01095_ EXIT=FOUND Map ----- +----------------------------------------------------+ | ???????????????????????????# """"" # !!# | | ????????????????????????#### """"" #####+#### | | ?????????????????????????+ """""" | | ???????????????????????????# """" | | ???????????????????????????# = | | ???????????????????????????# #####/#### | | ???????????????????????????# #" "##### = %##?? | | ???????????????????????????# #"R"#???# T#?? | | ???????????????????????????# #"""#???##"!"###? | | ???????????????????????????# #####???#![ *[ #? | | ???????????????????#???????# #???????#!% =!!#? | | ??????????????????#""??????# #???????#!] !!#? | | ?????????????????##"T"###### #???????#!!! !!#? | | ?????????????????# ! + #???????########? | | ?????????????????# """ # #???????????????? | | ?????????????????# """ = %# #???????????????? | | ?????????????????# """ !%!%+ ###?????????????? | | ?????????????????? """ * # # "?????????????? | | ?????????????????? """ "T" # + ??????????????? | | ?????????????????# """ # # "?????????????? | | ?????????????????# # #T#?????????????? | | ?????????????????#### ###### ###?????????????? | | ?????????###+############## #??????????????? | | ???????? g Y #??????????????? | | ????????< g #??????????????? | | ????????a @ #??????????????? | | ????????????############### #??????????????? | | ??????????????????????????#######??????????????? | | ???????????????????????????????????????????????? | | ???????????????????????????????????????????????? | | ???????????????????????????????????????????????? | | ???????????????????????????????????????????????? | | | | | | | | | | | | | | | | | | | | | | | | | | | | | | | | | | | | | +----------------------------------------------------+ Best States ------------- Heat Dissipation 38 Energy Generation 14 Energy Capacity 280 Matter Stores 300 Matter Capacity 300 Sight Range 16 Terrain Scan Range 14 Terrain Scan Density 10 Additional Mass Support 6 Evasion (%) 64 Targeting Accuracy 5 Item Schematics ----------------- None Robot Schematics ------------------ None Fabricated ------------ Nothing Alien Tech Used ----------------- None Achievements -------------- None Challenges ------------ None Game ------ Seed MicroArmageddonBoregun Manual? 0 Play Time 00:18:40 Cumulative 13.9 hours Start 2024.04.02 @ 11:12:30 End 2024.04.02 @ 11:31:02 Sessions 3 Manual Loads 0 Difficulty Rogue Special Mode None Game No. 22 Rogue 22 Adventurer 0 Explorer 0 Win Type - Total 0 Types 0/0/0/0/0/0/0/0/0 Lore% 10 Gallery% 18 Achievement% 14 Wizard Run 0 Options --------- Layout 0 ASCII 0 Keyboard 0 Movement Mouse Keybinds 0 Fullscreen 2 Font 24/Smallcaps Map View 76x50 Zoom Use 0% Tactical HUD 1 Map Filters NONE Filters NONE Steam 1 RUN: 22c94b8a-7772-4994-9c90-33c14bb3d272